[Event "Late-Titled-Tuesday-Blitz-January-23-2024"]
[Site "Chess.com"]
[Date "2024.01.23"]
[Round "2"]
[White "LastHeroJr"]
[Black "maurovargas01"]
[Result "1-0"]
[WhiteElo "2435"]
[BlackElo "1838"]
[TimeControl "180+1"]
[EndTime "14:14:59 PST"]
[Termination "LastHeroJr won by resignation"]

1. e4 {[%clk 0:03:00.9]} 1... c5 {[%clk 0:02:59.2]} 2. Nf3 {[%clk 0:03:00.8]}
2... Nc6 {[%clk 0:02:58.9]} 3. d4 {[%clk 0:03:01.1]} 3... cxd4 {[%clk
0:02:58.8]} 4. Nxd4 {[%clk 0:03:02]} 4... d6 {[%clk 0:02:57.6]} 5. Nc3 {[%clk
0:03:00.8]} 5... g6 {[%clk 0:02:57.3]} 6. Be3 {[%clk 0:02:54.1]} 6... Bg7 {[%clk
0:02:57]} 7. Qd2 {[%clk 0:02:54.5]} 7... Bd7 {[%clk 0:02:56.3]} 8. O-O-O {[%clk
0:02:54.1]} 8... Rc8 {[%clk 0:02:53]} 9. Kb1 {[%clk 0:02:48.8]} 9... Ne5 {[%clk
0:02:50.2]} 10. f3 {[%clk 0:02:42.8]} 10... Nc4 {[%clk 0:02:45.9]} 11. Bxc4
{[%clk 0:02:42.7]} 11... Rxc4 {[%clk 0:02:44.1]} 12. g4 {[%clk 0:02:42.2]} 12...
Nf6 {[%clk 0:02:39.3]} 13. h4 {[%clk 0:02:39.5]} 13... h6 {[%clk 0:02:15.1]} 14.
h5 {[%clk 0:02:31]} 14... g5 {[%clk 0:02:12]} 15. Nf5 {[%clk 0:02:30.2]} 15...
Bxf5 {[%clk 0:02:07.6]} 16. gxf5 {[%clk 0:02:31.1]} 16... O-O {[%clk 0:02:02.8]}
17. Bxg5 {[%clk 0:02:30.7]} 17... Rxc3 {[%clk 0:01:58.9]} 18. Bxh6 {[%clk
0:02:21.7]} 18... Rxc2 {[%clk 0:01:13.9]} 19. Qg5 {[%clk 0:02:08]} 19... Rxb2+
{[%clk 0:01:12.6]} 20. Kxb2 {[%clk 0:02:08.9]} 20... Qb6+ {[%clk 0:01:10.8]} 21.
Ka1 {[%clk 0:02:09.2]} 21... Nxh5+ {[%clk 0:01:03.9]} 22. Bxg7 {[%clk
0:02:03.8]} 22... Nxg7 {[%clk 0:01:02.7]} 23. Rhg1 {[%clk 0:01:59.3]} 1-0

[Event "Late-Titled-Tuesday-Blitz-January-23-2024"]
[Site "Chess.com"]
[Date "2024.01.23"]
[Round "2"]
[White "Balla_Tamas"]
[Black "Mikhail_Bryakin"]
[Result "0-1"]
[WhiteElo "2462"]
[BlackElo "2826"]
[TimeControl "180+1"]
[EndTime "14:15:21 PST"]
[Termination "Mikhail_Bryakin won by resignation"]

1. e4 {[%clk 0:03:00.9]} 1... d6 {[%clk 0:02:53.2]} 2. d4 {[%clk 0:03:00.9]}
2... e5 {[%clk 0:02:53.6]} 3. Nf3 {[%clk 0:02:58.3]} 3... Nd7 {[%clk 0:02:52.6]}
4. Nc3 {[%clk 0:02:56.7]} 4... Ngf6 {[%clk 0:02:51.7]} 5. Bc4 {[%clk 0:02:55.4]}
5... h6 {[%clk 0:02:50.5]} 6. O-O {[%clk 0:02:53.6]} 6... c6 {[%clk 0:02:50.9]}
7. a4 {[%clk 0:02:53.5]} 7... Qc7 {[%clk 0:02:51.3]} 8. b3 {[%clk 0:02:48.1]}
8... g6 {[%clk 0:02:51.7]} 9. Bb2 {[%clk 0:02:47.8]} 9... Bg7 {[%clk 0:02:52.2]}
10. Qe2 {[%clk 0:02:42.4]} 10... O-O {[%clk 0:02:52.5]} 11. Rad1 {[%clk
0:02:42.4]} 11... a6 {[%clk 0:02:51.8]} 12. dxe5 {[%clk 0:02:27.5]} 12... dxe5
{[%clk 0:02:49.9]} 13. Ba3 {[%clk 0:02:26.9]} 13... Re8 {[%clk 0:02:50.2]} 14.
Bd6 {[%clk 0:02:25.9]} 14... Qa5 {[%clk 0:02:50.2]} 15. b4 {[%clk 0:02:15.8]}
15... Qb6 {[%clk 0:02:49.3]} 16. a5 {[%clk 0:02:03.1]} 16... Qa7 {[%clk
0:02:49.8]} 17. Bb3 {[%clk 0:01:28.7]} 17... b5 {[%clk 0:02:49.6]} 18. axb6
{[%clk 0:01:27.4]} 18... Nxb6 {[%clk 0:02:49.7]} 19. Bc5 {[%clk 0:01:26.6]}
19... Nfd7 {[%clk 0:02:47]} 20. Rxd7 {[%clk 0:01:20.5]} 20... Bxd7 {[%clk
0:02:44.1]} 21. Na4 {[%clk 0:01:20.4]} 21... Rab8 {[%clk 0:02:40.8]} 22. Nxb6
{[%clk 0:01:20.4]} 22... Rxb6 {[%clk 0:02:41.7]} 23. Qe3 {[%clk 0:01:15.7]}
23... Reb8 {[%clk 0:02:42]} 24. Rd1 {[%clk 0:01:11]} 24... Be8 {[%clk
0:02:38.8]} 25. Bxb6 {[%clk 0:01:06.7]} 25... Qxb6 {[%clk 0:02:39.7]} 26. Qxb6
{[%clk 0:01:06.3]} 26... Rxb6 {[%clk 0:02:40.6]} 27. Rd8 {[%clk 0:01:06.9]}
27... Kf8 {[%clk 0:02:41.3]} 28. c3 {[%clk 0:01:04.6]} 28... a5 {[%clk
0:02:41.1]} 29. h3 {[%clk 0:00:53.1]} 29... axb4 {[%clk 0:02:37.5]} 30. cxb4
{[%clk 0:00:52.7]} 30... Rxb4 {[%clk 0:02:37.5]} 31. Bc2 {[%clk 0:00:51.4]}
31... Bf6 {[%clk 0:02:36.2]} 32. Rc8 {[%clk 0:00:48.1]} 32... Rc4 {[%clk
0:02:34.4]} 33. Bd3 {[%clk 0:00:46.3]} 33... Rc3 {[%clk 0:02:34.4]} 34. Ba6
{[%clk 0:00:44.9]} 34... Ke7 {[%clk 0:02:34.8]} 35. Rc7+ {[%clk 0:00:34.9]}
35... Kd6 {[%clk 0:02:31.9]} 36. Rc8 {[%clk 0:00:34.9]} 36... Bd7 {[%clk
0:02:32.5]} 37. Rf8 {[%clk 0:00:27.5]} 37... Be6 {[%clk 0:02:31.9]} 38. g4
{[%clk 0:00:19.9]} 38... Rxf3 {[%clk 0:02:30.1]} 0-1

[Event "Late-Titled-Tuesday-Blitz-January-23-2024"]
[Site "Chess.com"]
[Date "2024.01.23"]
[Round "2"]
[White "disciplinedbrat"]
[Black "ProChessWICTH"]
[Result "0-1"]
[WhiteElo "2285"]
[BlackElo "2515"]
[TimeControl "180+1"]
[EndTime "14:15:26 PST"]
[Termination "ProChessWICTH won by resignation"]

1. Nf3 {[%clk 0:02:48.7]} 1... Nf6 {[%clk 0:02:58.4]} 2. g3 {[%clk 0:02:45]}
2... g6 {[%clk 0:02:58.8]} 3. Bg2 {[%clk 0:02:44.4]} 3... Bg7 {[%clk 0:02:59.4]}
4. O-O {[%clk 0:02:41.9]} 4... O-O {[%clk 0:02:59.3]} 5. c4 {[%clk 0:02:40.8]}
5... d5 {[%clk 0:02:59.5]} 6. cxd5 {[%clk 0:02:39.1]} 6... Nxd5 {[%clk
0:03:00.4]} 7. Nc3 {[%clk 0:02:39.5]} 7... Nb6 {[%clk 0:02:58.3]} 8. d3 {[%clk
0:02:37.9]} 8... c5 {[%clk 0:02:56.3]} 9. Qc2 {[%clk 0:02:37.4]} 9... Nc6 {[%clk
0:02:56.1]} 10. Be3 {[%clk 0:02:34.2]} 10... Nd4 {[%clk 0:02:53.9]} 11. Bxd4
{[%clk 0:02:31.1]} 11... cxd4 {[%clk 0:02:54.8]} 12. Nb5 {[%clk 0:02:31.7]}
12... a6 {[%clk 0:02:42.9]} 13. Na3 {[%clk 0:02:16.9]} 13... Be6 {[%clk
0:02:39]} 14. b3 {[%clk 0:02:16.8]} 14... Rc8 {[%clk 0:02:22.4]} 15. Qb2 {[%clk
0:02:15.6]} 15... Nd5 {[%clk 0:02:08.7]} 16. Ng5 {[%clk 0:02:00.7]} 16... Bf5
{[%clk 0:02:03.6]} 17. Rac1 {[%clk 0:01:52]} 17... Qd7 {[%clk 0:01:55.9]} 18.
Nc4 {[%clk 0:01:46]} 18... Rc7 {[%clk 0:01:26.7]} 19. Nf3 {[%clk 0:01:32.6]}
19... Nc3 {[%clk 0:01:09.4]} 20. Nce5 {[%clk 0:01:20.9]} 20... Qe6 {[%clk
0:00:53.5]} 21. Nc4 {[%clk 0:01:10.9]} 21... Nxe2+ {[%clk 0:00:53.2]} 0-1

[Event "Late-Titled-Tuesday-Blitz-January-23-2024"]
[Site "Chess.com"]
[Date "2024.01.23"]
[Round "2"]
[White "HajiyevKanan"]
[Black "BardArtem"]
[Result "1-0"]
[WhiteElo "2565"]
[BlackElo "2811"]
[TimeControl "180+1"]
[EndTime "14:15:30 PST"]
[Termination "HajiyevKanan won by resignation"]

1. d4 {[%clk 0:03:00.1]} 1... Nf6 {[%clk 0:02:56.7]} 2. Nf3 {[%clk 0:03:00.6]}
2... b6 {[%clk 0:02:55.7]} 3. g3 {[%clk 0:03:00.8]} 3... Bb7 {[%clk 0:02:54.8]}
4. Bg2 {[%clk 0:03:01]} 4... g6 {[%clk 0:02:51.4]} 5. O-O {[%clk 0:03:00.6]}
5... Bg7 {[%clk 0:02:51]} 6. b3 {[%clk 0:03:01]} 6... O-O {[%clk 0:02:50.6]} 7.
Bb2 {[%clk 0:03:01.6]} 7... e6 {[%clk 0:02:45]} 8. c4 {[%clk 0:03:01.2]} 8... d6
{[%clk 0:02:40.4]} 9. Nbd2 {[%clk 0:03:00.3]} 9... Nbd7 {[%clk 0:02:25.1]} 10.
Qc2 {[%clk 0:02:58.7]} 10... Re8 {[%clk 0:02:13.6]} 11. Rad1 {[%clk 0:02:56.1]}
11... Qe7 {[%clk 0:02:13.1]} 12. Rfe1 {[%clk 0:02:55]} 12... e5 {[%clk
0:02:12.6]} 13. e4 {[%clk 0:02:52.8]} 13... a5 {[%clk 0:02:10.6]} 14. a3 {[%clk
0:02:41.7]} 14... h6 {[%clk 0:02:04.8]} 15. h3 {[%clk 0:02:41.9]} 15... Kh7
{[%clk 0:02:04.2]} 16. Kh2 {[%clk 0:02:41.9]} 16... Rad8 {[%clk 0:02:03.9]} 17.
b4 {[%clk 0:02:39.8]} 17... axb4 {[%clk 0:02:02.6]} 18. axb4 {[%clk 0:02:40.7]}
18... exd4 {[%clk 0:01:53.3]} 19. Nxd4 {[%clk 0:02:33.5]} 19... Qe5 {[%clk
0:01:51.6]} 20. f4 {[%clk 0:01:44.1]} 20... Qe7 {[%clk 0:01:42.9]} 21. e5 {[%clk
0:01:44]} 21... Bxg2 {[%clk 0:01:03.1]} 22. exf6 {[%clk 0:01:44]} 22... Qxf6
{[%clk 0:01:04]} 23. Kxg2 {[%clk 0:01:38.2]} 23... c5 {[%clk 0:01:04.4]} 24. Ne4
{[%clk 0:01:24.9]} 24... Rxe4 {[%clk 0:01:03.8]} 25. Rxe4 {[%clk 0:01:25.6]}
25... cxd4 {[%clk 0:01:02]} 26. Bxd4 {[%clk 0:01:23.8]} 26... Qf5 {[%clk
0:01:01.6]} 27. g4 {[%clk 0:01:16]} 1-0

[Event "Late-Titled-Tuesday-Blitz-January-23-2024"]
[Site "Chess.com"]
[Date "2024.01.23"]
[Round "2"]
[White "DrCeltic"]
[Black "AntonSmirnov"]
[Result "0-1"]
[WhiteElo "2600"]
[BlackElo "2984"]
[TimeControl "180+1"]
[EndTime "14:15:35 PST"]
[Termination "AntonSmirnov won on time"]

1. e4 {[%clk 0:02:59.8]} 1... c5 {[%clk 0:02:59.1]} 2. Nf3 {[%clk 0:03:00.2]}
2... d6 {[%clk 0:02:59.4]} 3. d4 {[%clk 0:03:00.7]} 3... cxd4 {[%clk 0:03:00.3]}
4. Nxd4 {[%clk 0:03:01.6]} 4... Nf6 {[%clk 0:02:59.7]} 5. Nc3 {[%clk 0:03:02]}
5... a6 {[%clk 0:03:00.4]} 6. Be3 {[%clk 0:03:02.6]} 6... e5 {[%clk 0:03:00.6]}
7. Nf3 {[%clk 0:03:03.2]} 7... Qc7 {[%clk 0:02:56.9]} 8. a4 {[%clk 0:03:03.1]}
8... Be7 {[%clk 0:02:56.2]} 9. a5 {[%clk 0:03:03]} 9... O-O {[%clk 0:02:53.7]}
10. Be2 {[%clk 0:03:03.6]} 10... Bd8 {[%clk 0:02:48]} 11. O-O {[%clk 0:02:48.5]}
11... Nc6 {[%clk 0:02:48.2]} 12. Bg5 {[%clk 0:02:43.3]} 12... Nxa5 {[%clk
0:02:41.9]} 13. Bxf6 {[%clk 0:02:43.2]} 13... Bxf6 {[%clk 0:02:41.1]} 14. Nd5
{[%clk 0:02:42.1]} 14... Qd8 {[%clk 0:02:41.8]} 15. Nxf6+ {[%clk 0:02:37.9]}
15... gxf6 {[%clk 0:02:42.7]} 16. Qd2 {[%clk 0:02:35.4]} 16... Nc6 {[%clk
0:02:40.8]} 17. Qh6 {[%clk 0:02:30.1]} 17... Kh8 {[%clk 0:02:34.5]} 18. Rfd1
{[%clk 0:01:47]} 18... Rg8 {[%clk 0:02:33.6]} 19. Nh4 {[%clk 0:01:36.9]} 19...
Nd4 {[%clk 0:02:27.1]} 20. Bh5 {[%clk 0:01:29]} 20... Be6 {[%clk 0:02:07]} 21.
c3 {[%clk 0:01:14.3]} 21... Nb3 {[%clk 0:02:06.7]} 22. Ra3 {[%clk 0:00:32.9]}
22... Nc5 {[%clk 0:02:05.9]} 23. Nf5 {[%clk 0:00:15.3]} 23... Nxe4 {[%clk
0:01:57.8]} 0-1

[Event "Late-Titled-Tuesday-Blitz-January-23-2024"]
[Site "Chess.com"]
[Date "2024.01.23"]
[Round "2"]
[White "sofaceindisguise"]
[Black "lucachess49"]
[Result "1-0"]
[WhiteElo "2765"]
[BlackElo "2513"]
[TimeControl "180+1"]
[EndTime "14:15:35 PST"]
[Termination "sofaceindisguise won by resignation"]

1. e4 {[%clk 0:03:00.9]} 1... d6 {[%clk 0:02:55.8]} 2. d4 {[%clk 0:03:00.7]}
2... Nf6 {[%clk 0:02:56.3]} 3. Nc3 {[%clk 0:03:01.3]} 3... Nbd7 {[%clk
0:02:55.4]} 4. f4 {[%clk 0:03:00.6]} 4... e5 {[%clk 0:02:48.3]} 5. Nf3 {[%clk
0:02:55.2]} 5... exd4 {[%clk 0:02:37.5]} 6. Qxd4 {[%clk 0:02:53.5]} 6... Nc5
{[%clk 0:02:11]} 7. Bd2 {[%clk 0:02:41]} 7... Nfxe4 {[%clk 0:01:49]} 8. Nxe4
{[%clk 0:02:40.3]} 8... Qe7 {[%clk 0:01:48.9]} 9. O-O-O {[%clk 0:02:32.4]} 9...
Nxe4 {[%clk 0:01:46.3]} 10. Re1 {[%clk 0:02:32]} 10... f5 {[%clk 0:01:45.5]} 11.
Ng5 {[%clk 0:02:30.6]} 11... Qf6 {[%clk 0:01:16.9]} 12. Qc4 {[%clk 0:01:56.5]}
12... d5 {[%clk 0:00:35.8]} 13. Qxd5 {[%clk 0:01:52.2]} 13... c6 {[%clk
0:00:30.2]} 14. Nxe4 {[%clk 0:01:50]} 14... fxe4 {[%clk 0:00:22]} 15. Qxe4+
{[%clk 0:01:50.1]} 15... Kd8 {[%clk 0:00:18.2]} 16. Bc3 {[%clk 0:01:48.1]} 16...
Qf7 {[%clk 0:00:18.5]} 17. Rd1+ {[%clk 0:01:47.5]} 17... Kc7 {[%clk 0:00:18.8]}
18. Be5+ {[%clk 0:01:48.2]} 18... Kb6 {[%clk 0:00:18.4]} 19. Bc4 {[%clk
0:01:40.1]} 19... Qf5 {[%clk 0:00:15.2]} 20. Qe3+ {[%clk 0:01:40.3]} 20... Bc5
{[%clk 0:00:14.9]} 21. Qb3+ {[%clk 0:01:40.9]} 21... Ka5 {[%clk 0:00:12.6]} 22.
Bc3+ {[%clk 0:01:40.8]} 1-0

[Event "Late-Titled-Tuesday-Blitz-January-23-2024"]
[Site "Chess.com"]
[Date "2024.01.23"]
[Round "2"]
[White "kuli4ik"]
[Black "Quattroporte300"]
[Result "1-0"]
[WhiteElo "2917"]
[BlackElo "2428"]
[TimeControl "180+1"]
[EndTime "14:15:37 PST"]
[Termination "kuli4ik won by resignation"]

1. Nf3 {[%clk 0:02:50.3]} 1... c5 {[%clk 0:02:59.2]} 2. e3 {[%clk 0:02:49.6]}
2... Nc6 {[%clk 0:02:58.3]} 3. d4 {[%clk 0:02:50]} 3... cxd4 {[%clk 0:02:56.6]}
4. exd4 {[%clk 0:02:50.9]} 4... d5 {[%clk 0:02:56.5]} 5. c3 {[%clk 0:02:51.2]}
5... Nf6 {[%clk 0:02:56.2]} 6. h3 {[%clk 0:02:51]} 6... g6 {[%clk 0:02:56.2]} 7.
Bf4 {[%clk 0:02:50]} 7... Bg7 {[%clk 0:02:56.6]} 8. Be2 {[%clk 0:02:49.3]} 8...
O-O {[%clk 0:02:53]} 9. O-O {[%clk 0:02:49.2]} 9... Re8 {[%clk 0:02:52.4]} 10.
Nbd2 {[%clk 0:02:48.8]} 10... Bf5 {[%clk 0:02:42.4]} 11. Re1 {[%clk 0:02:48.9]}
11... Rc8 {[%clk 0:02:40.8]} 12. Bf1 {[%clk 0:02:41.7]} 12... b6 {[%clk
0:02:27.7]} 13. Ba6 {[%clk 0:02:37.2]} 13... Nh5 {[%clk 0:02:06.4]} 14. Bh2
{[%clk 0:02:34.4]} 14... e5 {[%clk 0:01:54.9]} 15. Bxc8 {[%clk 0:02:30.5]} 15...
Bxc8 {[%clk 0:01:51.7]} 16. Nxe5 {[%clk 0:02:29.6]} 16... Nxe5 {[%clk
0:01:50.1]} 17. Bxe5 {[%clk 0:02:29.2]} 17... Bxe5 {[%clk 0:01:36.1]} 18. Rxe5
{[%clk 0:02:27.9]} 18... Rxe5 {[%clk 0:01:35.5]} 19. dxe5 {[%clk 0:02:28.5]}
19... Qg5 {[%clk 0:01:32]} 20. Nf3 {[%clk 0:02:26.4]} 20... Qf4 {[%clk
0:01:31.6]} 21. Qd4 {[%clk 0:02:20.4]} 21... Be6 {[%clk 0:01:14.5]} 22. Qxf4
{[%clk 0:02:19.5]} 22... Nxf4 {[%clk 0:01:14.1]} 23. Nd4 {[%clk 0:02:19.5]}
23... Nd3 {[%clk 0:01:13.4]} 24. b3 {[%clk 0:02:15.9]} 24... Nxe5 {[%clk
0:01:11.7]} 25. Nxe6 {[%clk 0:02:14.7]} 25... fxe6 {[%clk 0:01:11.3]} 26. Re1
{[%clk 0:02:15.3]} 26... Nd3 {[%clk 0:00:56.9]} 27. Rxe6 {[%clk 0:02:14.4]}
27... Nf4 {[%clk 0:00:55.9]} 28. Re3 {[%clk 0:02:08.4]} 28... a5 {[%clk
0:00:48.1]} 29. h4 {[%clk 0:02:05.5]} 29... Kg7 {[%clk 0:00:38.6]} 30. g3 {[%clk
0:02:04.9]} 30... Nh5 {[%clk 0:00:32.7]} 31. Re6 {[%clk 0:02:04.6]} 31... Nf6
{[%clk 0:00:30.9]} 32. Rxb6 {[%clk 0:02:04.1]} 32... Ne4 {[%clk 0:00:31.6]} 33.
Rc6 {[%clk 0:02:02.2]} 33... Kf7 {[%clk 0:00:28.5]} 34. Kg2 {[%clk 0:01:59.1]}
34... Ke7 {[%clk 0:00:27.3]} 35. f3 {[%clk 0:01:58.2]} 35... Nd6 {[%clk
0:00:25.6]} 36. Rc5 {[%clk 0:01:56.6]} 1-0

[Event "Late-Titled-Tuesday-Blitz-January-23-2024"]
[Site "Chess.com"]
[Date "2024.01.23"]
[Round "2"]
[White "xakevicius91"]
[Black "AsaHoffmann"]
[Result "1-0"]
[WhiteElo "2554"]
[BlackElo "2371"]
[TimeControl "180+1"]
[EndTime "14:15:47 PST"]
[Termination "xakevicius91 won by resignation"]

1. e4 {[%clk 0:03:00.9]} 1... d6 {[%clk 0:02:58.6]} 2. d4 {[%clk 0:03:00.9]}
2... Nf6 {[%clk 0:02:52.4]} 3. Nc3 {[%clk 0:03:00.9]} 3... c6 {[%clk 0:02:49.5]}
4. f4 {[%clk 0:03:01]} 4... Qa5 {[%clk 0:02:48.9]} 5. Bd3 {[%clk 0:03:00.8]}
5... e5 {[%clk 0:02:48.6]} 6. Nf3 {[%clk 0:03:00.6]} 6... exd4 {[%clk 0:02:48]}
7. Nxd4 {[%clk 0:03:00.2]} 7... Qb6 {[%clk 0:02:47.6]} 8. Nb3 {[%clk 0:02:56.1]}
8... a5 {[%clk 0:02:46.7]} 9. a4 {[%clk 0:02:55.3]} 9... Na6 {[%clk 0:02:46.1]}
10. Qe2 {[%clk 0:02:54]} 10... Nb4 {[%clk 0:02:43.9]} 11. Be3 {[%clk 0:02:54.2]}
11... Nxd3+ {[%clk 0:02:42.7]} 12. Qxd3 {[%clk 0:02:55.1]} 12... Qa6 {[%clk
0:02:42.1]} 13. Qd2 {[%clk 0:02:54.9]} 13... Be7 {[%clk 0:02:37.6]} 14. h3
{[%clk 0:02:54.6]} 14... O-O {[%clk 0:02:29.7]} 15. g4 {[%clk 0:02:54.9]} 15...
d5 {[%clk 0:02:27.3]} 16. e5 {[%clk 0:02:54.5]} 16... Ne4 {[%clk 0:02:22.1]} 17.
Nxe4 {[%clk 0:02:53.1]} 17... dxe4 {[%clk 0:02:21.8]} 18. Qe2 {[%clk 0:02:53.3]}
18... Bh4+ {[%clk 0:02:20.1]} 19. Bf2 {[%clk 0:02:53]} 19... Bxf2+ {[%clk
0:02:13.5]} 20. Kxf2 {[%clk 0:02:53.9]} 20... Qb6+ {[%clk 0:02:08]} 21. Qe3
{[%clk 0:02:49.5]} 21... Qb4 {[%clk 0:02:01.3]} 22. Qd4 {[%clk 0:02:45.1]} 22...
f6 {[%clk 0:01:57.8]} 23. Qxb4 {[%clk 0:02:43.5]} 23... axb4 {[%clk 0:01:57.7]}
24. exf6 {[%clk 0:02:42.2]} 24... Rxf6 {[%clk 0:01:57.2]} 25. Ke3 {[%clk
0:02:42.3]} 25... Be6 {[%clk 0:01:55.3]} 26. Nc5 {[%clk 0:02:36.7]} 26... Bd5
{[%clk 0:01:54.3]} 27. Nxb7 {[%clk 0:02:33.9]} 27... h6 {[%clk 0:01:43.4]} 28.
a5 {[%clk 0:02:31.8]} 28... Rc8 {[%clk 0:01:37.8]} 29. Nc5 {[%clk 0:02:31.8]}
29... Rf7 {[%clk 0:01:32.4]} 30. Rhd1 {[%clk 0:02:29.6]} 30... Ra7 {[%clk
0:01:25.1]} 31. Rd4 {[%clk 0:02:28.4]} 31... Rb8 {[%clk 0:01:23.6]} 32. f5
{[%clk 0:02:27]} 32... Rb5 {[%clk 0:01:22.9]} 33. Nxe4 {[%clk 0:02:26.8]} 33...
Rbxa5 {[%clk 0:01:16.8]} 34. Rxa5 {[%clk 0:02:26.2]} 34... Rxa5 {[%clk
0:01:16.7]} 35. Rxb4 {[%clk 0:02:26.5]} 35... Ra1 {[%clk 0:01:16.3]} 36. Rb8+
{[%clk 0:02:21]} 36... Kh7 {[%clk 0:01:15.5]} 37. Nc3 {[%clk 0:02:17.7]} 37...
Rh1 {[%clk 0:01:12.7]} 38. Nxd5 {[%clk 0:02:14.6]} 38... Rxh3+ {[%clk
0:01:12.2]} 39. Kf4 {[%clk 0:02:12.1]} 39... cxd5 {[%clk 0:01:11.8]} 40. Rc8
{[%clk 0:02:09.2]} 40... Rh2 {[%clk 0:01:08.7]} 41. b4 {[%clk 0:02:04.9]} 41...
Re2 {[%clk 0:01:02.6]} 42. b5 {[%clk 0:02:04.3]} 42... Re4+ {[%clk 0:01:02.1]}
43. Kf3 {[%clk 0:02:05]} 43... Rb4 {[%clk 0:01:01.6]} 44. Rb8 {[%clk 0:02:03.1]}
44... Rc4 {[%clk 0:00:54.6]} 45. b6 {[%clk 0:02:03.3]} 45... Rxc2 {[%clk
0:00:54.1]} 46. b7 {[%clk 0:02:03.1]} 46... Rb2 {[%clk 0:00:54.2]} 47. Kf4
{[%clk 0:02:03.7]} 47... Rb4+ {[%clk 0:00:50.7]} 48. Ke5 {[%clk 0:02:03.3]}
48... d4 {[%clk 0:00:50.6]} 49. Ke4 {[%clk 0:02:02.6]} 49... h5 {[%clk
0:00:48.1]} 50. g5 {[%clk 0:02:00.9]} 50... h4 {[%clk 0:00:47.2]} 51. g6+ {[%clk
0:02:01]} 51... Kh6 {[%clk 0:00:47.2]} 52. Rh8+ {[%clk 0:02:01.8]} 52... Kg5
{[%clk 0:00:47]} 53. b8=Q {[%clk 0:02:02.7]} 1-0

[Event "Late-Titled-Tuesday-Blitz-January-23-2024"]
[Site "Chess.com"]
[Date "2024.01.23"]
[Round "2"]
[White "katharinareinecke"]
[Black "DeArron_Fox"]
[Result "0-1"]
[WhiteElo "2013"]
[BlackElo "2446"]
[TimeControl "180+1"]
[EndTime "14:15:53 PST"]
[Termination "DeArron_Fox won by checkmate"]

1. d4 {[%clk 0:03:00.9]} 1... d5 {[%clk 0:03:00]} 2. Nf3 {[%clk 0:02:49.4]} 2...
Nf6 {[%clk 0:02:58.7]} 3. g3 {[%clk 0:02:49.7]} 3... Bf5 {[%clk 0:02:55.9]} 4.
Bg2 {[%clk 0:02:49.7]} 4... c6 {[%clk 0:02:56.5]} 5. O-O {[%clk 0:02:49.7]} 5...
e6 {[%clk 0:02:57.2]} 6. Nh4 {[%clk 0:02:45.9]} 6... Bg4 {[%clk 0:02:51.5]} 7.
h3 {[%clk 0:02:39]} 7... Bh5 {[%clk 0:02:51.4]} 8. c4 {[%clk 0:02:37.3]} 8...
Nbd7 {[%clk 0:02:46.4]} 9. b3 {[%clk 0:02:35.7]} 9... Bd6 {[%clk 0:02:43.8]} 10.
Bb2 {[%clk 0:02:32.9]} 10... Ne4 {[%clk 0:02:26.3]} 11. Nd2 {[%clk 0:02:02]}
11... f5 {[%clk 0:02:16.6]} 12. Nxe4 {[%clk 0:01:54.9]} 12... fxe4 {[%clk
0:02:14.7]} 13. cxd5 {[%clk 0:01:42.2]} 13... cxd5 {[%clk 0:02:08]} 14. Bh1
{[%clk 0:01:23.9]} 14... e3 {[%clk 0:01:19.4]} 15. f4 {[%clk 0:01:10.2]} 15...
g5 {[%clk 0:01:04.7]} 16. fxg5 {[%clk 0:00:57.1]} 16... Qxg5 {[%clk 0:00:50.4]}
17. g4 {[%clk 0:00:39.7]} 17... Qxh4 {[%clk 0:00:46.7]} 18. gxh5 {[%clk
0:00:38.9]} 18... Qg3+ {[%clk 0:00:46.5]} 19. Bg2 {[%clk 0:00:36.4]} 19... Qh2#
{[%clk 0:00:46.8]} 0-1

[Event "Late-Titled-Tuesday-Blitz-January-23-2024"]
[Site "Chess.com"]
[Date "2024.01.23"]
[Round "2"]
[White "Eloist"]
[Black "Grandmaster2B"]
[Result "0-1"]
[WhiteElo "2411"]
[BlackElo "2800"]
[TimeControl "180+1"]
[EndTime "14:16:00 PST"]
[Termination "Grandmaster2B won on time"]

1. e4 {[%clk 0:02:58.2]} 1... c6 {[%clk 0:03:00.9]} 2. Nf3 {[%clk 0:02:57.4]}
2... d5 {[%clk 0:03:01.8]} 3. d3 {[%clk 0:02:56]} 3... Qc7 {[%clk 0:03:02.1]} 4.
Nc3 {[%clk 0:02:53.1]} 4... dxe4 {[%clk 0:02:59]} 5. Nxe4 {[%clk 0:02:52.9]}
5... Nf6 {[%clk 0:02:59.1]} 6. Qe2 {[%clk 0:02:52.1]} 6... Nxe4 {[%clk
0:02:57.1]} 7. Qxe4 {[%clk 0:02:51.8]} 7... Nd7 {[%clk 0:02:57.4]} 8. Bf4 {[%clk
0:02:50]} 8... Qa5+ {[%clk 0:02:57.5]} 9. Bd2 {[%clk 0:02:44.9]} 9... Qb6 {[%clk
0:02:57.5]} 10. Bc3 {[%clk 0:02:40.7]} 10... Nf6 {[%clk 0:02:57.4]} 11. Qh4
{[%clk 0:02:35.9]} 11... Nd5 {[%clk 0:02:57]} 12. Be2 {[%clk 0:01:58.2]} 12...
Nxc3 {[%clk 0:02:56.4]} 13. bxc3 {[%clk 0:01:58.1]} 13... g6 {[%clk 0:02:56.3]}
14. Qd4 {[%clk 0:01:52.3]} 14... Rg8 {[%clk 0:02:52.7]} 15. O-O {[%clk
0:01:33.8]} 15... Bg7 {[%clk 0:02:52.9]} 16. Qh4 {[%clk 0:01:22.3]} 16... h6
{[%clk 0:02:52.1]} 17. Rab1 {[%clk 0:01:12.5]} 17... Qc7 {[%clk 0:02:52.6]} 18.
c4 {[%clk 0:00:57.4]} 18... Bf5 {[%clk 0:02:52.7]} 19. Rb3 {[%clk 0:00:46.8]}
19... g5 {[%clk 0:02:51.9]} 20. Qg3 {[%clk 0:00:45.1]} 20... Qxg3 {[%clk
0:02:51.4]} 21. hxg3 {[%clk 0:00:44.6]} 21... b6 {[%clk 0:02:52]} 22. a4 {[%clk
0:00:42.6]} 22... Kd7 {[%clk 0:02:38.6]} 23. Nd2 {[%clk 0:00:34.6]} 23... Kc7
{[%clk 0:02:33.8]} 24. Bf3 {[%clk 0:00:33.2]} 24... g4 {[%clk 0:02:21.8]} 25.
Be4 {[%clk 0:00:30.1]} 25... Bd7 {[%clk 0:02:21.7]} 26. d4 {[%clk 0:00:15.7]}
26... Bxd4 {[%clk 0:02:20.9]} 27. Re1 {[%clk 0:00:15.8]} 27... e5 {[%clk
0:02:15.8]} 28. c3 {[%clk 0:00:12.8]} 28... Bc5 {[%clk 0:02:15.8]} 29. Bh7
{[%clk 0:00:10.8]} 29... Rg7 {[%clk 0:02:15.1]} 30. Bc2 {[%clk 0:00:10.7]} 30...
Re8 {[%clk 0:02:14.6]} 31. Ne4 {[%clk 0:00:10.6]} 31... Be7 {[%clk 0:02:14.7]}
32. c5 {[%clk 0:00:10.1]} 32... f5 {[%clk 0:02:12.8]} 33. cxb6+ {[%clk
0:00:09.3]} 33... axb6 {[%clk 0:02:13.7]} 34. Nd2 {[%clk 0:00:09]} 34... Bc5
{[%clk 0:02:12.9]} 35. Nc4 {[%clk 0:00:08.2]} 35... f4 {[%clk 0:02:06.5]} 36.
gxf4 {[%clk 0:00:07.2]} 36... exf4 {[%clk 0:02:07.4]} 37. Rxe8 {[%clk 0:00:07]}
37... Bxe8 {[%clk 0:02:08.3]} 38. Kf1 {[%clk 0:00:06.3]} 38... Rd7 {[%clk
0:02:05.6]} 39. Ne5 {[%clk 0:00:04.8]} 39... Rd2 {[%clk 0:02:02.1]} 40. Bf5
{[%clk 0:00:04.5]} 40... Rd5 {[%clk 0:02:01.7]} 0-1